[Event "Khanty-Mansiysk FIDE GP"]
[Site "Khanty-Mansiysk"]
[Date "2015.05.15"]
[Round "2"]
[White "Giri, Anish"]
[Black "Karjakin, Sergey"]
[Result "1/2-1/2"]
[ECO "A04"]
[WhiteElo "2776"]
[BlackElo "2753"]
[PlyCount "61"]
[EventDate "2015.05.14"]
[EventType "tourn"]
[EventRounds "11"]
[EventCountry "RUS"]
[EventCategory "21"]
[SourceTitle "CBM 167"]
[Source "ChessBase"]
[SourceDate "2015.07.13"]
[SourceVersion "1"]
[SourceVersionDate "2015.07.13"]
[SourceQuality "1"]
[TimeControl "40/7200+30:1000/900+30:0"]
[WhiteClock "0:26:33"]
[BlackClock "0:03:54"]

1. Nf3 {[%emt 0:00:32]} Nf6 {[%emt 0:00:42]} 2. g3 {[%emt 0:02:02]} c5 {
[%emt 0:03:06]} 3. Bg2 {[%emt 0:00:44]} Nc6 {[%emt 0:00:37]} 4. O-O {[%emt 0:
00:36]} e5 {[%emt 0:01:03] Some sort of strange Reti position, in which Black
never played d5. Giri overpressed, and despite having the pair of bishops and
some open files on the kingside, he was in danger as his structure on the
queenside was decimated and his central pawns were under attack.} 5. e4 {
[%emt 0:00:34]} Be7 {[%emt 0:01:36]} 6. Nc3 {[%emt 0:00:35]} d6 {[%emt 0:01:34]
} 7. d3 {[%emt 0:00:39]} O-O {[%emt 0:00:37]} 8. h3 {[%emt 0:00:35]} Rb8 {
[%emt 0:08:52]} (8... Bd7 9. Nd2 Nd4 10. a4 Nc6 11. Nc4 Nb4 12. f4 exf4 13.
Bxf4 Be6 14. Ne3 d5 15. Nf5 Bxf5 16. exf5 Bd6 17. Ne2 h6 18. c3 Nc6 19. g4 Re8
20. Qd2 Bxf4 21. Nxf4 d4 22. Qf2 Qd6 23. Rae1 Rad8 24. c4 b6 25. Bxc6 Qxc6 26.
b3 a6 27. Qg3 Rxe1 28. Rxe1 Re8 29. Rxe8+ Qxe8 30. Kf2 b5 31. axb5 axb5 32. Qf3
bxc4 33. bxc4 Qe5 34. Qg3 Qb8 35. Ne2 Qb1 36. Qf3 Kh7 37. h4 h5 38. gxh5 {
Kramnik,V (2783)-Karjakin,S (2760) Zuerich 2015 1/2-1/2}) 9. Nh2 {[%emt 0:00:
58]} Bd7 $146 {[%emt 0:13:36]} (9... b5 10. Ng4 Bxg4 11. hxg4 b4 12. Nd5 Nxd5
13. exd5 Nd4 14. c3 Nb5 15. Bd2 Bg5 16. Be1 bxc3 17. bxc3 Qc8 18. Qa4 Rb6 19.
Rb1 Qb7 20. Rb3 g6 21. f4 exf4 22. gxf4 Bf6 23. Bd2 Rb8 24. Qe4 Qd7 25. g5 Bg7
26. Re1 Nc7 27. Qe7 Qxe7 28. Rxe7 Rxb3 29. axb3 Nb5 30. d4 cxd4 31. c4 Nc3 32.
Rxa7 d3 33. Ra2 Nxa2 {0-1 (33) Romanishin,O (2610)-Savon,V (2560) Kiev 1978})
10. Ng4 {[%emt 0:04:32]} Qc8 {[%emt 0:10:40]} 11. Nxf6+ {[%emt 0:06:05]} Bxf6 {
[%emt 0:01:05]} 12. Kh2 {[%emt 0:10:02]} Be6 {[%emt 0:15:16]} 13. f4 {[%emt 0:
10:43]} exf4 {[%emt 0:01:18]} 14. gxf4 {[%emt 0:01:33]} Bxc3 {[%emt 0:01:17]}
15. bxc3 {[%emt 0:02:07]} f5 {[%emt 0:00:33]} 16. Be3 {[%emt 0:22:33]} Qc7 {
[%emt 0:10:04]} 17. Qd2 {[%emt 0:07:52]} fxe4 {[%emt 0:29:56]} 18. dxe4 {
[%emt 0:01:27]} Na5 {[%emt 0:00:35]} 19. Bf2 {[%emt 0:06:42]} Nc4 {[%emt 0:00:
58]} 20. Qc1 {[%emt 0:00:42]} Bd7 {[%emt 0:05:43]} 21. f5 {[%emt 0:03:13]} Bc6
{[%emt 0:00:57]} 22. Bh4 {[%emt 0:02:38]} Rbe8 {[%emt 0:02:28]} 23. Qf4 {
[%emt 0:01:00]} Qa5 {[%emt 0:07:24]} 24. f6 {[%emt 0:12:21]} Rf7 {[%emt 0:00:
39]} 25. Qg3 {[%emt 0:00:49]} Nd2 {[%emt 0:02:26]} 26. Rf4 {[%emt 0:00:44]}
Nxe4 {[%emt 0:01:28]} 27. Bxe4 {[%emt 0:00:58]} Rxe4 {[%emt 0:01:01]} 28. Rxe4
{[%emt 0:03:16]} Bxe4 {[%emt 0:00:32]} 29. Re1 {[%emt 0:00:49]} Bc6 {[%emt 0:
03:26]} 30. Qxd6 {[%emt 0:00:55]} Qc7 $6 $138 {[%emt 0:01:37] Karjakin
definitely had the better chances, and near the end instead of the safe 30...
Qc7?! he could have tried to go for the win with 30...Qxa2! taking a pawn and
asking Giri if he had any real compensation.} (30... Qxa2) 31. Qxc7 {[%emt 0:
00:41]} 1/2-1/2

[Event "Khanty-Mansiysk FIDE GP"]
[Site "Khanty-Mansiysk"]
[Date "2015.05.17"]
[Round "4"]
[White "Gelfand, Boris"]
[Black "Giri, Anish"]
[Result "1/2-1/2"]
[ECO "D38"]
[WhiteElo "2744"]
[BlackElo "2776"]
[PlyCount "79"]
[EventDate "2015.05.14"]
[EventType "tourn"]
[EventRounds "11"]
[EventCountry "RUS"]
[EventCategory "21"]
[SourceTitle "CBM 167"]
[Source "ChessBase"]
[SourceDate "2015.07.13"]
[SourceVersion "1"]
[SourceVersionDate "2015.07.13"]
[SourceQuality "1"]
[TimeControl "40/7200:20/3600:900+30"]

1. d4 {[%emt 0:00:01]} Nf6 {[%emt 0:00:05]} 2. c4 {[%emt 0:00:02]} e6 {[%emt 0:
00:05]} 3. Nf3 {[%emt 0:00:04]} d5 {[%emt 0:00:04]} 4. Nc3 {[%emt 0:00:05]} Bb4
{[%emt 0:00:03]} 5. Bg5 {[%emt 0:00:09]} h6 {[%emt 0:00:05]} 6. Bxf6 {[%emt 0:
00:03]} Qxf6 {[%emt 0:00:05]} 7. e3 {[%emt 0:00:02]} O-O {[%emt 0:00:06]} 8.
Rc1 {[%emt 0:00:06]} dxc4 {[%emt 0:00:04]} 9. Bxc4 {[%emt 0:00:17]} c5 {
[%emt 0:00:03]} 10. O-O {[%emt 0:00:17]} cxd4 {[%emt 0:00:22]} 11. Ne4 {
[%emt 0:00:13]} Qe7 {[%emt 0:00:05]} 12. Nxd4 {[%emt 0:00:46]} Bd7 {[%emt 0:00:
13]} 13. Bd3 {[%emt 0:02:40]} (13. Qh5 Nc6 14. Nb3 {Aronian,L (2804)-Anand,V 
(2785) Grand Slam Final 7th 2014 (6) 1-0}) 13... Nc6 {[%emt 0:00:05]} 14. Nb3 {
[%emt 0:00:03]} Na5 $146 {[%emt 0:00:03]} (14... Rfd8 15. a3 Ba5 16. Nd6 Be8
17. Nxe8 Qxe8 18. Nxa5 Nxa5 19. b4 Nc6 20. Qb3 Ne7 21. Rc7 Rab8 22. Be4 Nd5 23.
Rc4 Rd7 24. Rfc1 Rbd8 25. Bf3 Qe7 26. Rd4 b6 27. g3 g6 28. Rcd1 Nf6 {1/2-1/2 
(28) Gelfand,B (2747)-Leko,P (2713) Tsaghkadzor 2015}) 15. Rc7 {[%emt 0:03:12]}
Rfd8 {[%emt 0:00:16]} (15... Nxb3 16. Rxb7 Rab8 17. Rxb8 Rxb8 18. Qxb3 $14 {
Roiz}) 16. a3 {[%emt 0:14:57]} Nxb3 {[%emt 0:05:06]} 17. Qxb3 {[%emt 0:12:23]}
Ba5 {[%emt 0:07:59]} 18. Rxb7 {[%emt 0:01:07] Gelfand "won" a pawn in this
Ragozin, but the resulting initiative allowed Giri to have a very pleasant
double rook endgame, even though he was the one with a material deficit.
Gelfand had no problems holding the draw either, though.} Ba4 {[%emt 0:04:54]}
19. Rxe7 {[%emt 0:07:20]} Bxb3 {[%emt 0:00:07]} 20. Nc5 {[%emt 0:06:06]} Bb6 {
[%emt 0:04:24]} 21. Nxb3 {[%emt 0:07:51]} Rxd3 {[%emt 0:00:13]} 22. Nd4 {
[%emt 0:00:04]} Bxd4 {[%emt 0:01:55]} 23. exd4 {[%emt 0:02:20]} Rb8 {[%emt 0:
00:23]} 24. Rxa7 {[%emt 0:02:43]} Rxb2 {[%emt 0:00:10]} 25. Ra4 {[%emt 0:01:44]
} Ra2 {[%emt 0:00:59]} 26. h4 {[%emt 0:01:02]} g6 {[%emt 0:00:29]} 27. g3 {
[%emt 0:01:08]} Kg7 {[%emt 0:00:17]} 28. Kg2 {[%emt 0:01:15]} g5 {[%emt 0:02:
55]} 29. hxg5 {[%emt 0:02:26]} hxg5 {[%emt 0:00:05]} 30. g4 {[%emt 0:05:51]}
Kf6 {[%emt 0:01:19]} 31. Re1 {[%emt 0:01:00]} Rdd2 {[%emt 0:00:07]} 32. Rf1 {
[%emt 0:00:02]} Rd3 {[%emt 0:00:04]} 33. Re1 {[%emt 0:00:03]} Rdxa3 {[%emt 0:
00:03]} 34. Rxa3 {[%emt 0:01:01]} Rxa3 {[%emt 0:00:02]} 35. Rd1 {[%emt 0:00:29]
} Ke7 {[%emt 0:00:05]} 36. d5 {[%emt 0:02:41]} e5 {[%emt 0:02:44]} 37. Rb1 {
[%emt 0:00:30]} Rd3 {[%emt 0:00:06]} 38. Rb7+ {[%emt 0:00:52]} Kf6 {[%emt 0:00:
09]} 39. Rb6+ {[%emt 0:00:05]} Ke7 {[%emt 0:00:08]} 40. Rb7+ {[%emt 0:00:00]}
1/2-1/2

[Event "Tata Steel-A 79th"]
[Site "Wijk aan Zee"]
[Date "2017.01.14"]
[Round "1"]
[White "Karjakin, Sergey"]
[Black "Giri, Anish"]
[Result "1/2-1/2"]
[ECO "B90"]
[WhiteElo "2785"]
[BlackElo "2773"]
[PlyCount "69"]
[EventDate "2017.01.14"]
[EventType "tourn"]
[EventRounds "13"]
[EventCountry "NED"]
[EventCategory "21"]
[SourceTitle "CBM 177"]
[Source "ChessBase"]
[SourceDate "2017.03.16"]
[SourceVersion "1"]
[SourceVersionDate "2017.03.16"]
[SourceQuality "1"]
[TimeControl "40/6000+30:20/3000+30:900+30"]

1. e4 {[%emt 0:00:00]} c5 {[%emt 0:00:03]} 2. Nf3 {[%emt 0:00:00]} d6 {[%emt 0:
00:03]} 3. d4 {[%emt 0:00:00]} cxd4 {[%emt 0:00:03]} 4. Nxd4 {[%emt 0:00:00]}
Nf6 {[%emt 0:00:05]} 5. Nc3 {[%emt 0:00:00]} a6 {[%emt 0:00:04]} 6. a3 {
[%emt 0:00:15]} e5 {[%emt 0:02:33]} 7. Nf3 {[%emt 0:00:20]} Be7 {[%emt 0:12:18]
} 8. Bc4 {[%emt 0:00:15]} Be6 {[%emt 0:03:43]} 9. Ba2 {[%emt 0:02:24]} O-O {
[%emt 0:09:45]} 10. O-O {[%emt 0:00:18]} b5 {[%emt 0:00:29]} 11. Re1 {[%emt 0:
13:49]} Re8 {[%emt 0:04:32]} 12. Bg5 {[%emt 0:27:17]} Nbd7 {[%emt 0:04:14]} 13.
Nd2 {[%emt 0:01:16]} Rb8 {[%emt 0:12:55]} 14. Bxf6 {[%emt 0:13:44]} Nxf6 {
[%emt 0:00:33]} 15. Nf1 {[%emt 0:00:05]} b4 {[%emt 0:02:00]} 16. Nd5 {[%emt 0:
16:22]} bxa3 {[%emt 0:02:34]} 17. bxa3 {[%emt 0:00:10]} Nxd5 {[%emt 0:10:06]}
18. Bxd5 {[%emt 0:00:06]} Bg5 {[%emt 0:01:40]} 19. g3 {[%emt 0:02:41]} Qd7 {
[%emt 0:02:11]} 20. Qd3 {[%emt 0:02:18]} Rb6 {[%emt 0:16:21]} 21. h4 {[%emt 0:
03:31]} Bh6 {[%emt 0:00:25]} 22. Reb1 {[%emt 0:07:47]} Reb8 {[%emt 0:00:48]}
23. Rb3 {[%emt 0:04:11]} Bxd5 {[%emt 0:09:15]} 24. Qxd5 {[%emt 0:00:31]} g6 {
[%emt 0:02:12]} 25. Rab1 {[%emt 0:05:20]} Rxb3 {[%emt 0:00:19]} 26. Rxb3 {
[%emt 0:00:02]} Qc7 {[%emt 0:02:05]} 27. a4 {[%emt 0:04:53]} Bc1 {[%emt 0:01:
37]} 28. Kg2 {[%emt 0:02:29]} h5 {[%emt 0:00:49]} 29. Nh2 {[%emt 0:00:37]} Rxb3
{[%emt 0:06:34]} 30. cxb3 {[%emt 0:00:02]} Qc2 {[%emt 0:00:14]} 31. Nf1 {
[%emt 0:01:32]} a5 {[%emt 0:02:21]} 32. Kf3 {[%emt 0:01:53]} Qc3+ {[%emt 0:00:
25]} 33. Ke2 {[%emt 0:00:07]} Qc2+ {[%emt 0:00:27]} 34. Kf3 {[%emt 0:00:06]}
Qc3+ {[%emt 0:00:02]} 35. Ke2 {[%emt 0:00:05]} 1/2-1/2

[Event "Tata Steel-A 79th"]
[Site "Wijk aan Zee"]
[Date "2017.01.16"]
[Round "3"]
[White "Wojtaszek, Radoslaw"]
[Black "Giri, Anish"]
[Result "1/2-1/2"]
[ECO "D12"]
[WhiteElo "2750"]
[BlackElo "2773"]
[PlyCount "82"]
[EventDate "2017.01.14"]
[EventType "tourn"]
[EventRounds "13"]
[EventCountry "NED"]
[EventCategory "21"]
[SourceTitle "CBM 177"]
[Source "ChessBase"]
[SourceDate "2017.03.16"]
[SourceVersion "1"]
[SourceVersionDate "2017.03.16"]
[SourceQuality "1"]
[TimeControl "40/6000+30:20/3000+30:900+30"]

1. d4 {[%emt 0:00:00]} d5 {[%emt 0:00:02]} 2. c4 {[%emt 0:00:00]} c6 {[%emt 0:
00:03]} 3. Nf3 {[%emt 0:00:00]} Nf6 {[%emt 0:00:03]} 4. e3 {[%emt 0:00:00]} Bf5
{[%emt 0:00:02]} 5. Nc3 {[%emt 0:00:02]} e6 {[%emt 0:00:04]} 6. Nh4 {[%emt 0:
00:25]} Be4 {[%emt 0:00:04]} 7. f3 {[%emt 0:01:35]} Bg6 {[%emt 0:00:15]} 8. Qb3
{[%emt 0:00:22]} Qc7 {[%emt 0:00:11]} 9. Bd2 {[%emt 0:01:15]} Be7 {[%emt 0:00:
17]} 10. g3 {[%emt 0:00:08]} O-O {[%emt 0:01:28]} 11. Rc1 {[%emt 0:01:33]} dxc4
{[%emt 0:00:12]} 12. Bxc4 {[%emt 0:00:10]} Nbd7 {[%emt 0:00:04]} 13. Nxg6 {
[%emt 0:01:47]} hxg6 {[%emt 0:00:22]} 14. O-O {[%emt 0:01:59]} e5 {[%emt 0:01:
10]} 15. d5 {[%emt 0:00:56]} Nc5 {[%emt 0:12:16]} 16. Qc2 {[%emt 0:00:49]} b5 {
[%emt 0:00:10]} 17. Be2 {[%emt 0:00:12]} cxd5 {[%emt 0:00:24]} 18. Nxb5 {
[%emt 0:00:47]} Qb6 {[%emt 0:04:11]} 19. b4 {[%emt 0:01:06]} Ne6 {[%emt 0:00:
47]} 20. Qc6 {[%emt 0:02:18]} Rfb8 {[%emt 0:00:38]} 21. Qxb6 {[%emt 0:18:50]}
Rxb6 {[%emt 0:00:27]} 22. a3 {[%emt 0:00:05]} Bd8 {[%emt 0:20:10]} 23. Nc3 {
[%emt 0:11:25]} d4 {[%emt 0:01:39]} 24. Na4 {[%emt 0:06:28]} Rd6 {[%emt 0:00:
13]} 25. Bc4 {[%emt 0:07:15]} Nd5 {[%emt 0:07:21]} 26. Bxd5 {[%emt 0:08:41]}
Rxd5 {[%emt 0:00:05]} 27. e4 {[%emt 0:00:05]} Rd7 {[%emt 0:06:25]} 28. Nb2 {
[%emt 0:00:07]} d3 {[%emt 0:04:34]} 29. Be3 {[%emt 0:10:59]} Bb6 {[%emt 0:05:
28]} 30. Kf2 {[%emt 0:10:21]} f5 {[%emt 0:12:15]} 31. Nc4 {[%emt 0:02:07]} fxe4
{[%emt 0:08:45]} 32. Bxb6 {[%emt 0:04:59]} d2 {[%emt 0:00:24]} 33. Rcd1 {
[%emt 0:05:15]} axb6 {[%emt 0:00:13]} 34. Rxd2 {[%emt 0:00:07]} Rd4 {[%emt 0:
09:02]} 35. Rxd4 {[%emt 0:00:19]} exd4 {[%emt 0:00:03]} 36. fxe4 {[%emt 0:00:
06]} b5 {[%emt 0:00:15]} 37. Ne5 {[%emt 0:02:12]} Rxa3 {[%emt 0:03:11]} 38. Rc1
{[%emt 0:01:57]} Ng5 {[%emt 0:00:45]} 39. Rc8+ {[%emt 0:03:06]} Kh7 {[%emt 0:
00:05]} 40. Rd8 {[%emt 0:00:00]} Nxe4+ {[%emt 0:04:34]} 41. Kg2 {[%emt 0:03:16]
} Ra2+ {[%emt 0:05:29]} 1/2-1/2

[Event "Tata Steel-A 79th"]
[Site "Wijk aan Zee"]
[Date "2017.01.19"]
[Round "5"]
[White "Wei, Yi"]
[Black "Giri, Anish"]
[Result "1/2-1/2"]
[ECO "B19"]
[WhiteElo "2706"]
[BlackElo "2773"]
[PlyCount "86"]
[EventDate "2017.01.14"]
[EventType "tourn"]
[EventRounds "13"]
[EventCountry "NED"]
[EventCategory "21"]
[SourceTitle "CBM 177"]
[Source "ChessBase"]
[SourceDate "2017.03.16"]
[SourceVersion "1"]
[SourceVersionDate "2017.03.16"]
[SourceQuality "1"]
[TimeControl "40/6000+30:20/3000+30:900+30"]

1. e4 {[%emt 0:00:00]} c6 {[%emt 0:00:02]} 2. d4 {[%emt 0:00:26]} d5 {[%emt 0:
00:04]} 3. Nd2 {[%emt 0:00:26]} dxe4 {[%emt 0:00:03]} 4. Nxe4 {[%emt 0:00:04]}
Bf5 {[%emt 0:00:03]} 5. Ng3 {[%emt 0:00:16]} Bg6 {[%emt 0:00:03]} 6. h4 {
[%emt 0:00:10]} h6 {[%emt 0:00:03]} 7. Nf3 {[%emt 0:00:06]} e6 {[%emt 0:00:09]}
8. Ne5 {[%emt 0:04:34]} Bh7 {[%emt 0:00:08]} 9. Bd3 {[%emt 0:00:05]} Bxd3 {
[%emt 0:00:06]} 10. Qxd3 {[%emt 0:00:04]} Nd7 {[%emt 0:00:11]} 11. f4 {[%emt 0:
00:17]} Be7 {[%emt 0:00:18]} 12. Bd2 {[%emt 0:03:01]} Nxe5 {[%emt 0:01:02]} 13.
fxe5 {[%emt 0:01:03]} Bxh4 {[%emt 0:00:03]} 14. O-O-O {[%emt 0:09:14]} Bxg3 {
[%emt 0:00:33]} 15. Qxg3 {[%emt 0:00:06]} Ne7 {[%emt 0:00:03]} 16. Bb4 {
[%emt 0:19:39]} Nf5 {[%emt 0:12:45]} 17. Qf4 {[%emt 0:01:27]} g5 {[%emt 0:03:
42]} 18. Qf2 $146 {[%emt 0:07:46]} (18. Qf3 g4 19. Qxg4 Qd5 20. Qh5 O-O-O 21.
Rh3 Qxg2 22. Rd2 Qg1+ 23. Rd1 Qg5+ 24. Qxg5 hxg5 25. Rxh8 Rxh8 26. Bc3 g4 27.
Rg1 g3 28. Kd2 Rh4 29. Kd3 b5 30. a3 Kd7 31. b3 Rf4 32. Bb2 Rf3+ 33. Ke2 Rf2+
34. Kd3 g2 35. Bc3 Rf3+ 36. Kd2 Nh4 {0-1 (36) Puranik,A (2475)-Melkumyan,H 
(2640) Warsaw 2016}) 18... g4 {[%emt 0:01:38]} 19. c4 {[%emt 0:16:52]} Qb6 {
[%emt 0:11:55]} 20. Bc5 {[%emt 0:03:23]} Qa6 {[%emt 0:02:13]} 21. b3 {[%emt 0:
00:18]} g3 {[%emt 0:07:07]} 22. Qd2 {[%emt 0:05:38]} O-O-O {[%emt 0:17:46]} 23.
Kb2 {[%emt 0:00:44]} b6 {[%emt 0:05:38]} 24. Bd6 {[%emt 0:00:06]} Nxd6 {
[%emt 0:00:09]} 25. exd6 {[%emt 0:00:06]} Rxd6 {[%emt 0:00:06]} 26. Qf4 {
[%emt 0:14:28]} Rd7 {[%emt 0:03:13]} 27. d5 {[%emt 0:00:28]} cxd5 {[%emt 0:07:
27]} 28. cxd5 {[%emt 0:00:18]} exd5 {[%emt 0:01:04]} 29. Qg4 {[%emt 0:01:49]}
Qb7 {[%emt 0:16:30]} 30. Qf4 {[%emt 0:15:45]} Qb8 {[%emt 0:11:11]} 31. Qf6 {
[%emt 0:00:14]} Kb7 {[%emt 0:00:13]} 32. Rxd5 {[%emt 0:00:08]} Rxd5 {[%emt 0:
02:02]} 33. Qxf7+ {[%emt 0:00:03]} Kc6 {[%emt 0:02:41]} 34. Rc1+ {[%emt 0:00:
05]} Rc5 {[%emt 0:00:04]} 35. Qf3+ {[%emt 0:00:03]} Kb5 {[%emt 0:05:18]} 36.
Qd3+ {[%emt 0:00:19]} Ka5 {[%emt 0:02:22]} 37. Qd4 {[%emt 0:03:29]} Ka6 {
[%emt 0:00:23]} 38. Qa4+ {[%emt 0:00:05]} Ra5 {[%emt 0:00:31]} 39. Qc4+ {
[%emt 0:00:07]} Rb5 {[%emt 0:00:22]} 40. Qa4+ {[%emt 0:00:00]} Ra5 {[%emt 0:00:
26]} 41. Qc4+ {[%emt 0:00:26]} Rb5 {[%emt 0:01:20]} 42. Qa4+ {[%emt 0:00:05]}
Kb7 {[%emt 0:00:35]} 43. Qe4+ {[%emt 0:00:05]} Ka6 {[%emt 0:00:02]} 1/2-1/2

[Event "Tata Steel-A 79th"]
[Site "Wijk aan Zee"]
[Date "2017.01.24"]
[Round "9"]
[White "Giri, Anish"]
[Black "Rapport, Richard"]
[Result "1/2-1/2"]
[ECO "E16"]
[WhiteElo "2773"]
[BlackElo "2702"]
[PlyCount "71"]
[EventDate "2017.01.14"]
[EventType "tourn"]
[EventRounds "13"]
[EventCountry "NED"]
[EventCategory "21"]
[SourceTitle "CBM 177"]
[Source "ChessBase"]
[SourceDate "2017.03.16"]
[SourceVersion "1"]
[SourceVersionDate "2017.03.16"]
[SourceQuality "1"]
[TimeControl "40/6000+30:20/3000+30:900+30"]

1. d4 {[%emt 0:00:00]} Nf6 {[%emt 0:01:33]} 2. c4 {[%emt 0:00:00]} e6 {[%emt 0:
00:40]} 3. Nf3 {[%emt 0:00:03]} b6 {[%emt 0:00:06]} 4. g3 {[%emt 0:00:11]} Bb7
{[%emt 0:00:05]} 5. Bg2 {[%emt 0:00:07]} Bb4+ {[%emt 0:00:21]} 6. Bd2 {[%emt 0:
00:19]} a5 {[%emt 0:00:05]} 7. O-O {[%emt 0:02:46]} O-O {[%emt 0:00:07]} 8. Bf4
{[%emt 0:04:56]} Be7 {[%emt 0:00:38]} 9. Nc3 {[%emt 0:03:09]} Ne4 {[%emt 0:00:
22]} 10. Qc2 {[%emt 0:00:28]} Nxc3 {[%emt 0:00:28]} 11. Qxc3 {[%emt 0:00:36]}
d6 {[%emt 0:01:11]} 12. Qc2 {[%emt 0:07:06]} (12. Qd3 Nd7 13. e4 Bf6 14. Be3 g6
15. Rad1 Bg7 16. Rfe1 e5 17. Bg5 Qe8 18. Qd2 f6 19. Bh6 Qf7 20. Bxg7 Kxg7 21.
h4 Rae8 22. b3 Re7 23. h5 g5 24. h6+ Kxh6 25. Nh4 Ree8 26. Nf5+ Kg6 27. Bf3 h5
28. Kg2 Rh8 29. Qe2 h4 30. d5 h3+ 31. Kh2 Bc8 32. a3 Nc5 33. b4 Nb3 34. Bg4
Bxf5 35. Bxf5+ Kg7 36. Qg4 axb4 37. axb4 Nd4 38. c5 bxc5 39. bxc5 dxc5 40. Rc1
Qe7 41. f4 exf4 {Ding,L (2781)-Wang,Y (2729) Shenzhen 2015 0-1}) 12... f5 {
[%emt 0:14:20]} 13. Rad1 $146 {[%emt 0:04:43]} (13. Rfd1 Bf6 14. c5 bxc5 15.
dxc5 Be4 16. Qb3 d5 17. Ne1 Bxg2 18. Kxg2 Ra7 19. Qe3 Re8 20. Be5 Bxe5 21. Qxe5
Nc6 22. Qc3 Qf6 23. Rac1 Qxc3 24. Rxc3 Rb7 25. Nd3 e5 26. e3 Kf7 27. Rd2 g5 28.
f4 e4 29. Nc1 g4 30. b3 Ke6 31. h3 h5 32. hxg4 hxg4 33. Ne2 Rbb8 34. Rc1 Rh8
35. Rcd1 Nb4 36. Nd4+ Kf6 37. Rh1 Rxh1 38. Kxh1 Rh8+ 39. Kg2 Nd3 40. Rd1 Nb4
41. Rd2 Nd3 42. Rd1 Nb4 {Jianu,V (2563)-Marin,M (2580) Mamaia 2015 1/2-1/2})
13... Be4 {[%emt 0:01:19]} 14. Qc1 {[%emt 0:00:14]} Qe8 {[%emt 0:04:00]} 15.
Qe3 {[%emt 0:18:02]} Bf6 {[%emt 0:07:55]} 16. c5 {[%emt 0:18:42]} bxc5 {
[%emt 0:12:16]} 17. dxc5 {[%emt 0:00:11]} e5 {[%emt 0:04:01]} 18. Qb3+ {
[%emt 0:02:54]} Qf7 {[%emt 0:07:54]} 19. Bg5 {[%emt 0:04:31]} Qxb3 {[%emt 0:06:
13]} 20. axb3 {[%emt 0:00:09]} h6 {[%emt 0:09:52]} 21. Bxf6 {[%emt 0:01:00]}
Rxf6 {[%emt 0:00:03]} 22. cxd6 {[%emt 0:02:54]} cxd6 {[%emt 0:00:23]} 23. Nd2 {
[%emt 0:00:14]} Bxg2 {[%emt 0:00:44]} 24. Kxg2 {[%emt 0:00:02]} Nc6 {[%emt 0:
03:26]} 25. Nc4 {[%emt 0:02:42]} Nd4 {[%emt 0:00:45]} 26. f4 {[%emt 0:02:55]}
Nxb3 {[%emt 0:07:28]} 27. Rxd6 {[%emt 0:04:03]} Rxd6 {[%emt 0:00:32]} 28. Nxd6
{[%emt 0:00:05]} exf4 {[%emt 0:02:12]} 29. Rxf4 {[%emt 0:05:28]} Rd8 {[%emt 0:
01:30]} 30. Nxf5 {[%emt 0:04:31]} Rd2 {[%emt 0:00:34]} 31. Kf2 {[%emt 0:06:59]}
Nc1 {[%emt 0:03:21]} 32. Rc4 {[%emt 0:07:49]} Nxe2 {[%emt 0:02:01]} 33. Rc8+ {
[%emt 0:00:03]} Kf7 {[%emt 0:01:31]} 34. Rb8 {[%emt 0:02:09]} Nc3+ {[%emt 0:00:
55]} 35. Kf3 {[%emt 0:00:25]} Nd1 {[%emt 0:01:10]} 36. b3 {[%emt 0:00:54]}
1/2-1/2

[Event "Tata Steel-A 79th"]
[Site "Wijk aan Zee"]
[Date "2017.01.25"]
[Round "10"]
[White "Van Wely, Loek"]
[Black "Giri, Anish"]
[Result "1/2-1/2"]
[ECO "D43"]
[WhiteElo "2695"]
[BlackElo "2773"]
[PlyCount "62"]
[EventDate "2017.01.14"]
[EventType "tourn"]
[EventRounds "13"]
[EventCountry "NED"]
[EventCategory "21"]
[SourceTitle "CBM 177"]
[Source "ChessBase"]
[SourceDate "2017.03.16"]
[SourceVersion "1"]
[SourceVersionDate "2017.03.16"]
[SourceQuality "1"]
[TimeControl "40/6000+30:20/3000+30:900+30"]

1. d4 {[%emt 0:00:00]} d5 {[%emt 0:00:05]} 2. c4 {[%emt 0:00:00]} e6 {[%emt 0:
00:05]} 3. Nf3 {[%emt 0:00:42]} Nf6 {[%emt 0:00:05]} 4. Nc3 {[%emt 0:00:40]} c6
{[%emt 0:00:48]} 5. Bg5 {[%emt 0:02:39]} h6 {[%emt 0:00:24]} 6. Bxf6 {[%emt 0:
03:06]} Qxf6 {[%emt 0:00:06]} 7. g3 {[%emt 0:00:46]} Nd7 {[%emt 0:02:09]} 8.
Bg2 {[%emt 0:01:46]} dxc4 {[%emt 0:03:35]} 9. O-O {[%emt 0:01:06]} Be7 {
[%emt 0:04:32]} 10. e3 {[%emt 0:14:39]} (10. Ne4 Qf5 11. Ned2 e5 12. e4 Qh5 13.
Nxc4 exd4 14. Qxd4 Qc5 15. e5 O-O 16. Qe4 Nb6 17. Ne3 Qb4 18. Nd4 Rd8 19. Rad1
Qxb2 20. e6 Bxe6 21. Nxe6 fxe6 22. Bh3 Kh8 23. Bxe6 g5 24. Ng4 Rxd1 25. Rxd1
Qg7 26. Ne5 Qf6 27. Bb3 Kg7 28. Ng4 {1-0 (28) Mamedyarov,S (2761)-Gelfand,B 
(2743) Moscow 2016}) 10... O-O {[%emt 0:05:48]} 11. Nd2 {[%emt 0:06:32]} Nb6 {
[%emt 0:04:28]} 12. a4 {[%emt 0:11:37]} a5 {[%emt 0:01:49]} 13. f4 $146 {
[%emt 0:02:12]} (13. Nce4 Qg6 14. f4 f5 15. Nc3 c5 16. Nf3 Qh5 17. Qe2 Rd8 18.
Rfd1 Bd7 19. Kh1 Bc6 20. e4 fxe4 21. Ne5 Qxe2 22. Nxe2 Bxa4 23. Rd2 e3 {
0-1 (23) Joergensen,B (2285)-Klausen,T (2335) corr 1997}) 13... Bb4 {[%emt 0:
03:27]} 14. Qe2 {[%emt 0:04:29]} c5 {[%emt 0:15:59]} 15. dxc5 {[%emt 0:05:34]}
Bxc5 {[%emt 0:02:28]} 16. Nce4 {[%emt 0:01:43]} Qe7 {[%emt 0:00:11]} 17. Nxc5 {
[%emt 0:04:13]} Qxc5 {[%emt 0:00:03]} 18. Rfc1 {[%emt 0:00:24]} Bd7 {[%emt 0:
14:56]} 19. Nxc4 {[%emt 0:00:55]} Nxc4 {[%emt 0:00:09]} 20. Rxc4 {[%emt 0:00:
34]} Qb6 {[%emt 0:00:07]} 21. Rd1 {[%emt 0:11:56]} Rfd8 {[%emt 0:00:58]} 22.
Rcd4 {[%emt 0:00:54]} Be8 {[%emt 0:00:07]} 23. Rxd8 {[%emt 0:00:23]} Rxd8 {
[%emt 0:00:03]} 24. Rxd8 {[%emt 0:00:16]} Qxd8 {[%emt 0:00:02]} 25. Bxb7 {
[%emt 0:00:11]} Bxa4 {[%emt 0:00:06]} 26. Be4 {[%emt 0:02:36]} g6 {[%emt 0:09:
38]} 27. Kf2 {[%emt 0:02:08]} Qc7 {[%emt 0:04:03]} 28. Qd2 {[%emt 0:04:43]} Bb5
{[%emt 0:06:26]} 29. Bf3 {[%emt 0:03:50]} e5 {[%emt 0:01:55]} 30. h4 {[%emt 0:
05:00]} exf4 {[%emt 0:01:26]} 31. gxf4 {[%emt 0:01:14]} Bd7 {[%emt 0:05:18]}
1/2-1/2